[Event "Berliner IM-Turnier 2025"]
[Site "Berlin"]
[Date "2025.02.26"]
[Round "4.9"]
[White "Florstedt, Johannes"]
[Black "Ahmadinia, Ebrahim"]
[Result "1-0"]
[Annotator "ChessBase"]
[ECO "C58"]
[WhiteElo "2349"]
[BlackElo "2404"]
[PlyCount "125"]
[EventDate "2025.02.23"]
[EventType "tourn"]
[EventCountry "GER"]
[SourceTitle "playchess.com"]
[Source "ChessBase"]
[SourceQuality "1"]
[TimeControl "40/5400+30:1800+30"]

1. e4 {[%emt 0:00:08]} e5 {[%emt 0:00:30]} 2. Nf3 {[%emt 0:00:08]} Nc6 {[%emt 0:00:06]} 3. Bc4 {[%emt 0:00:07]} Nf6 {[%emt 0:00:23]} 4. Ng5 {[%emt 0:00:06]} d5 {[%emt 0:00:12]} 5. exd5 {[%emt 0:00:06]} Na5 {[%emt 0:00:07]} 6. Bb5+ {[%emt 0:00:06]} c6 {[%emt 0:00:07]} 7. dxc6 {[%emt 0:00:07]} bxc6 {[%emt 0:00:04]} 8. Qf3 {[%emt 0:00:10]} Be7 {[%emt 0:03:18]} 9. Bd3 {[%emt 0:03:41]} h6 {[%emt 0:04:50]} 10. Ne4 {[%emt 0:00:25]} Nd5 {[%emt 0:01:42]} 11. Ng3 {[%emt 0:00:29]} g6 {[%emt 0:10:07]} 12. Nc3 {[%emt 0:01:05]} O-O {[%emt 0:01:33]} 13. O-O {[%emt 0:00:29]} f5 {[%emt 0:03:54]} 14. Re1 {[%emt 0:00:03]} Bf6 {[%emt 0:07:29]} 15. Bf1 {[%emt 0:07:27]} Bg7 {[%emt 0:13:44]} 16. d3 {[%emt 0:13:46]} Rb8 {[%emt 0:16:16]} 17. a3 {[%emt 0:22:42]} Nxc3 {[%emt 0:02:25]} 18. bxc3 {[%emt 0:00:05]} c5 {[%emt 0:01:10]} 19. d4 {[%emt 0:05:47]} cxd4 {[%emt 0:12:09]} 20. cxd4 {[%emt 0:00:18]} Qxd4 {[%emt 0:07:07]} 21. Be3 {[%emt 0:00:09]} Qa4 {[%emt 0:04:04]} 22. Qd5+ {[%emt 0:19:50]} Kh7 {[%emt 0:00:02]} 23. Bxa7 {[%emt 0:00:22]} Bb7 {[%emt 0:00:47]} 24. Qc5 {[%emt 0:00:34]} Rbc8 {[%emt 0:01:10]} 25. Qb4 {[%emt 0:00:11]} Bc6 {[%emt 0:01:59]} 26. Rab1 {[%emt 0:05:28]} Ra8 {[%emt 0:00:36]} 27. Bc5 {[%emt 0:01:07]} Rfb8 {[%emt 0:00:56]} 28. Qxa4 {[%emt 0:05:16]} Bxa4 {[%emt 0:00:02]} 29. Rxb8 {[%emt 0:00:07]} Rxb8 {[%emt 0:00:01]} 30. Bd6 {[%emt 0:00:14]} Rc8 {[%emt 0:01:45]} 31. Bxe5 {[%emt 0:00:54]} Bf8 {[%emt 0:04:59]} 32. c3 {[%emt 0:02:49]} Nb3 {[%emt 0:00:50]} 33. h4 {[%emt 0:03:22]} Bxa3 {[%emt 0:01:11]} 34. h5 {[%emt 0:00:16]} Rd8 {[%emt 0:00:55]} 35. Bc4 {[%emt 0:03:25]} Nc5 {[%emt 0:00:24]} 36. Bd4 {[%emt 0:01:20]} Nb3 {[%emt 0:00:40]} 37. hxg6+ {[%emt 0:02:09]} Kxg6 {[%emt 0:00:13]} 38. Re6+ {[%emt 0:00:04]} Kh7 {[%emt 0:00:50]} 39. Nxf5 {[%emt 0:00:02]} Bf8 {[%emt 0:00:10]} 40. Be3 {[%emt 0:03:33]} Na5 {[%emt 0:01:00]} 41. Ba2 {[%emt 0:31:49]} Bb3 {[%emt 0:15:45]} 42. Bxb3 {[%emt 0:00:00]} Nxb3 {[%emt 0:00:02]} 43. Bxh6 {[%emt 0:00:00]} Rd1+ {[%emt 0:02:44]} 44. Kh2 {[%emt 0:00:00]} Rd5 {[%emt 0:00:35]} 45. Rf6 {[%emt 0:00:00]} Rxf5 {[%emt 0:01:15]} 46. Rxf5 {[%emt 0:00:00]} Bxh6 {[%emt 0:00:07]} 47. c4 {[%emt 0:00:00]} Bg7 {[%emt 0:02:08]} 48. Rd5 {[%emt 0:00:00]} Bf8 {[%emt 0:00:59]} 49. g4 {[%emt 0:00:00]} Nc5 {[%emt 0:00:12]} 50. f4 {[%emt 0:00:00]} Ne4 {[%emt 0:01:07]} 51. Kg2 {[%emt 0:00:00]} Nf6 {[%emt 0:00:56]} 52. Rf5 {[%emt 0:00:00]} Nxg4 {[%emt 0:01:11]} 53. Rxf8 {[%emt 0:00:00]} Ne3+ {[%emt 0:00:02]} 54. Kf3 {[%emt 0:00:00]} Nxc4 {[%emt 0:00:01]} 55. Rd8 {[%emt 0:00:00]} Kg7 {[%emt 0:00:11]} 56. Rd7+ {[%emt 0:00:00]} Kf6 {[%emt 0:00:35]} 57. Rd4 {[%emt 0:00:00]} Na3 {[%emt 0:00:28]} 58. Rb4 {[%emt 0:00:00]} Kf5 {[%emt 0:00:32]} 59. Ra4 {[%emt 0:00:00]} Nb1 {[%emt 0:00:08]} 60. Ra5+ {[%emt 0:00:00]} Kf6 {[%emt 0:01:24]} 61. Ke3 {[%emt 0:00:00]} Nc3 {[%emt 0:00:03]} 62. Kd3 {[%emt 0:00:00]} Nd1 {[%emt 0:00:31]} 63. Ra2 {[%emt 0:00:00]} 1-0

[Event "Berliner IM-Turnier 2025"]
[Site "Berlin"]
[Date "2025.02.26"]
[Round "4.10"]
[White "Muse, Drazen"]
[Black "Moritz, Aron"]
[Result "1/2-1/2"]
[Annotator "ChessBase"]
[ECO "E03"]
[WhiteElo "2309"]
[BlackElo "2276"]
[PlyCount "29"]
[EventDate "2025.02.23"]
[EventType "tourn"]
[EventCountry "GER"]
[SourceTitle "playchess.com"]
[Source "ChessBase"]
[SourceQuality "1"]
[TimeControl "40/5400+30:1800+30"]

1. d4 {[%emt 0:01:59]} Nf6 {[%emt 0:00:10]} 2. c4 {[%emt 0:00:03]} e6 {[%emt 0:00:09]} 3. g3 {[%emt 0:00:05]} d5 {[%emt 0:00:25]} 4. Bg2 {[%emt 0:00:05]} dxc4 {[%emt 0:00:21]} 5. Nf3 {[%emt 0:00:04]} c5 {[%emt 0:00:22]} 6. Qa4+ {[%emt 0:02:43]} Nbd7 {[%emt 0:02:51]} 7. O-O {[%emt 0:03:13]} a6 {[%emt 0:03:24]} 8. dxc5 {[%emt 0:06:50]} Bxc5 {[%emt 0:01:42]} 9. Qxc4 {[%emt 0:00:06]} b5 {[%emt 0:03:07]} 10. Qb3 {[%emt 0:01:07]} Bb7 {[%emt 0:02:22]} 11. a4 {[%emt 0:03:02]} Bd5 {[%emt 0:09:00]} 12. Qd3 {[%emt 0:03:28]} Be4 {[%emt 0:00:20]} 13. Qb3 {[%emt 0:00:47]} Bd5 {[%emt 0:01:53]} 14. Qd3 {[%emt 0:02:03]} Be4 {[%emt 0:01:17]} 15. Qb3 {[%emt 0:00:08]} 1/2-1/2

[Event "Berliner IM-Turnier 2025"]
[Site "Berlin"]
[Date "2025.02.27"]
[Round "5.6"]
[White "Moritz, Aron"]
[Black "Zobel, Christian"]
[Result "1/2-1/2"]
[Annotator "ChessBase"]
[ECO "B40"]
[WhiteElo "2276"]
[BlackElo "2188"]
[PlyCount "52"]
[EventDate "2025.02.23"]
[EventType "tourn"]
[EventCountry "GER"]
[SourceTitle "playchess.com"]
[Source "ChessBase"]
[SourceQuality "1"]
[TimeControl "40/5400+30:1800+30"]

1. e4 {[%emt 0:00:04]} c5 {[%emt 0:00:08]} 2. Nf3 {[%emt 0:00:10]} e6 {[%emt 0:00:07]} 3. g3 {[%emt 0:00:31]} d6 {[%emt 0:04:14]} 4. Bg2 {[%emt 0:01:11]} Nf6 {[%emt 0:03:05]} 5. e5 {[%emt 0:00:50]} dxe5 {[%emt 0:01:00]} 6. Nxe5 {[%emt 0:00:09]} Nbd7 {[%emt 0:12:39]} 7. Nc4 {[%emt 0:17:04]} Nb6 {[%emt 0:02:23]} 8. Nxb6 {[%emt 0:03:24]} Qxb6 {[%emt 0:00:37]} 9. Na3 {[%emt 0:00:31]} Bd7 {[%emt 0:12:06]} 10. Nc4 {[%emt 0:03:38]} Qc7 {[%emt 0:00:32]} 11. d3 {[%emt 0:05:35]} Bc6 {[%emt 0:02:14]} 12. Bf4 {[%emt 0:00:16]} Qc8 {[%emt 0:00:32]} 13. f3 {[%emt 0:06:16]} Nd5 {[%emt 0:06:31]} 14. Bd2 {[%emt 0:01:37]} Be7 {[%emt 0:02:20]} 15. Ne5 {[%emt 0:04:12]} Bf6 {[%emt 0:07:48]} 16. Nxc6 {[%emt 0:02:15]} Qxc6 {[%emt 0:00:02]} 17. c3 {[%emt 0:14:38]} O-O {[%emt 0:08:11]} 18. O-O {[%emt 0:03:55]} c4 {[%emt 0:03:02]} 19. dxc4 {[%emt 0:05:13]} Qxc4 {[%emt 0:00:13]} 20. Re1 {[%emt 0:02:06]} Qb5 {[%emt 0:03:21]} 21. Rb1 {[%emt 0:01:35]} Rad8 {[%emt 0:02:20]} 22. Qe2 {[%emt 0:00:55]} Qa4 {[%emt 0:01:06]} 23. a3 {[%emt 0:05:53]} Qb3 {[%emt 0:02:49]} 24. Rec1 {[%emt 0:02:30]} Nb6 {[%emt 0:02:40]} 25. Be1 {[%emt 0:01:51]} Nc4 {[%emt 0:01:35]} 26. f4 {[%emt 0:02:03]} e5 {[%emt 0:04:17]} 1/2-1/2

[Event "Berliner IM-Turnier 2025"]
[Site "Berlin"]
[Date "2025.02.27"]
[Round "5.7"]
[White "Ahmadinia, Ebrahim"]
[Black "Muse, Drazen"]
[Result "1/2-1/2"]
[Annotator "ChessBase"]
[ECO "B08"]
[WhiteElo "2404"]
[BlackElo "2309"]
[PlyCount "40"]
[EventDate "2025.02.23"]
[EventType "tourn"]
[EventCountry "GER"]
[SourceTitle "playchess.com"]
[Source "ChessBase"]
[SourceQuality "1"]
[TimeControl "40/5400+30:1800+30"]

1. e4 {[%emt 0:00:20]} Nc6 {[%emt 0:02:06]} 2. Nf3 {[%emt 0:00:30]} d6 {[%emt 0:00:05]} 3. d4 {[%emt 0:00:30]} Nf6 {[%emt 0:00:16]} 4. Nc3 {[%emt 0:00:35]} g6 {[%emt 0:00:04]} 5. Be2 {[%emt 0:05:13]} Bg7 {[%emt 0:00:29]} 6. O-O {[%emt 0:00:34]} O-O {[%emt 0:00:06]} 7. d5 {[%emt 0:00:17]} Nb8 {[%emt 0:00:04]} 8. Be3 {[%emt 0:01:10]} Bg4 {[%emt 0:04:02]} 9. a4 {[%emt 0:00:32]} a5 {[%emt 0:03:20]} 10. Nd2 {[%emt 0:15:34]} Bxe2 {[%emt 0:00:12]} 11. Qxe2 {[%emt 0:00:03]} Qc8 {[%emt 0:13:16]} 12. Nc4 {[%emt 0:01:40]} e6 {[%emt 0:04:32]} 13. Rae1 {[%emt 0:18:16]} exd5 {[%emt 0:03:40]} 14. exd5 {[%emt 0:01:10]} Na6 {[%emt 0:00:36]} 15. Nxa5 {[%emt 0:18:18]} Nb4 {[%emt 0:00:12]} 16. Qb5 {[%emt 0:01:05]} Nxc2 {[%emt 0:00:58]} 17. Re2 {[%emt 0:00:09]} Nxe3 {[%emt 0:00:16]} 18. Rxe3 {[%emt 0:00:07]} Ng4 {[%emt 0:03:45]} 19. Re2 {[%emt 0:04:48]} Ne5 {[%emt 0:00:43]} 20. Nb3 {[%emt 0:03:15]} c6 {[%emt 0:02:21]} 1/2-1/2

[Event "Berliner IM-Turnier 2025"]
[Site "Berlin"]
[Date "2025.02.27"]
[Round "5.8"]
[White "Yatskar, Martin"]
[Black "Florstedt, Johannes"]
[Result "0-1"]
[Annotator "ChessBase"]
[ECO "D78"]
[WhiteElo "2157"]
[BlackElo "2349"]
[PlyCount "76"]
[EventDate "2025.02.23"]
[EventType "tourn"]
[EventCountry "GER"]
[SourceTitle "playchess.com"]
[Source "ChessBase"]
[SourceQuality "1"]
[TimeControl "40/5400+30:1800+30"]

1. d4 {[%emt 0:00:04]} Nf6 {[%emt 0:03:07]} 2. c4 {[%emt 0:00:22]} g6 {[%emt 0:00:04]} 3. Nf3 {[%emt 0:00:05]} Bg7 {[%emt 0:00:06]} 4. g3 {[%emt 0:00:06]} c6 {[%emt 0:00:16]} 5. Bg2 {[%emt 0:00:07]} d5 {[%emt 0:00:07]} 6. O-O {[%emt 0:00:06]} O-O {[%emt 0:00:06]} 7. Qb3 {[%emt 0:00:08]} Qb6 {[%emt 0:00:09]} 8. Nc3 {[%emt 0:00:07]} Rd8 {[%emt 0:00:12]} 9. Na4 {[%emt 0:00:05]} Qxb3 {[%emt 0:01:51]} 10. axb3 {[%emt 0:00:08]} Na6 {[%emt 0:00:05]} 11. Bf4 {[%emt 0:01:23]} Be6 {[%emt 0:00:22]} 12. Rfc1 {[%emt 0:00:37]} Ne8 {[%emt 0:00:28]} 13. e3 {[%emt 0:09:33]} f6 {[%emt 0:00:19]} 14. cxd5 {[%emt 0:06:12]} Bxd5 {[%emt 0:06:46]} 15. g4 {[%emt 0:00:17]} g5 {[%emt 0:19:14]} 16. Bg3 {[%emt 0:00:08]} Bxb3 {[%emt 0:00:04]} 17. Nd2 {[%emt 0:09:11]} Bd5 {[%emt 0:04:50]} 18. Ne4 {[%emt 0:02:54]} Nb4 {[%emt 0:08:12]} 19. Nac3 {[%emt 0:14:01]} b6 {[%emt 0:00:28]} 20. Nxd5 {[%emt 0:01:35]} cxd5 {[%emt 0:00:49]} 21. Nc3 {[%emt 0:01:06]} e6 {[%emt 0:07:21]} 22. e4 {[%emt 0:04:17]} dxe4 {[%emt 0:04:36]} 23. Bxe4 {[%emt 0:00:27]} Rac8 {[%emt 0:00:45]} 24. Rxa7 {[%emt 0:06:19]} Rxd4 {[%emt 0:00:11]} 25. Rca1 {[%emt 0:10:18]} h5 {[%emt 0:07:49]} 26. f3 {[%emt 0:03:12]} hxg4 {[%emt 0:00:57]} 27. fxg4 {[%emt 0:02:49]} f5 {[%emt 0:09:54]} 28. Ra8 {[%emt 0:14:48]} Rxa8 {[%emt 0:01:01]} 29. Rxa8 {[%emt 0:00:38]} fxe4 {[%emt 0:00:24]} 30. Rxe8+ {[%emt 0:00:05]} Kf7 {[%emt 0:00:06]} 31. Rb8 {[%emt 0:00:09]} Rc4 {[%emt 0:03:02]} 32. Kf1 {[%emt 0:00:52]} Bxc3 {[%emt 0:01:54]} 33. bxc3 {[%emt 0:00:07]} Nd5 {[%emt 0:00:04]} 34. Be5 {[%emt 0:00:53]} Ne3+ {[%emt 0:01:31]} 35. Ke2 {[%emt 0:00:06]} Nxg4 {[%emt 0:00:08]} 36. Rb7+ {[%emt 0:00:33]} Kg6 {[%emt 0:01:08]} 37. Bg3 {[%emt 0:07:24]} Rxc3 {[%emt 0:02:26]} 38. Rxb6 {[%emt 0:00:10]} Rc2+ {[%emt 0:01:40]} 0-1

[Event "Berliner IM-Turnier 2025"]
[Site "Berlin"]
[Date "2025.02.27"]
[Round "5.9"]
[White "Noeldner, Julian"]
[Black "Poltorak, Sebastian"]
[Result "0-1"]
[Annotator "ChessBase"]
[ECO "B11"]
[WhiteElo "2233"]
[BlackElo "2407"]
[PlyCount "76"]
[EventDate "2025.02.23"]
[EventType "tourn"]
[EventCountry "GER"]
[SourceTitle "playchess.com"]
[Source "ChessBase"]
[SourceQuality "1"]
[TimeControl "40/5400+30:1800+30"]

1. e4 {[%emt 0:00:10]} c6 {[%emt 0:04:36]} 2. Nf3 {[%emt 0:00:07]} d5 {[%emt 0:00:09]} 3. Nc3 {[%emt 0:00:07]} dxe4 {[%emt 0:00:06]} 4. Nxe4 {[%emt 0:00:06]} Nf6 {[%emt 0:00:06]} 5. Qe2 {[%emt 0:00:05]} Nxe4 {[%emt 0:00:04]} 6. Qxe4 {[%emt 0:00:08]} Be6 {[%emt 0:00:03]} 7. c4 {[%emt 0:00:10]} g6 {[%emt 0:00:45]} 8. Qe5 {[%emt 0:01:08]} Rg8 {[%emt 0:00:09]} 9. Qe3 {[%emt 0:00:08]} Bg7 {[%emt 0:03:38]} 10. d4 {[%emt 0:03:20]} Qb6 {[%emt 0:06:42]} 11. b3 {[%emt 0:30:28]} Na6 {[%emt 0:06:33]} 12. c5 {[%emt 0:07:52]} Qc7 {[%emt 0:03:20]} 13. Bxa6 {[%emt 0:07:23]} Qa5+ {[%emt 0:00:32]} 14. Bd2 {[%emt 0:00:15]} Qxa6 {[%emt 0:00:04]} 15. Qe2 {[%emt 0:00:09]} Qxe2+ {[%emt 0:00:49]} 16. Kxe2 {[%emt 0:00:05]} Bg4 {[%emt 0:00:24]} 17. Be3 {[%emt 0:02:57]} O-O-O {[%emt 0:00:16]} 18. Rad1 {[%emt 0:00:53]} Rd5 {[%emt 0:03:35]} 19. Rd3 {[%emt 0:12:17]} Rgd8 {[%emt 0:01:01]} 20. Rhd1 {[%emt 0:00:06]} Rf5 {[%emt 0:00:25]} 21. b4 {[%emt 0:02:47]} Bxf3+ {[%emt 0:05:44]} 22. gxf3 {[%emt 0:01:34]} Rh5 {[%emt 0:00:03]} 23. a4 {[%emt 0:06:26]} a6 {[%emt 0:06:01]} 24. b5 {[%emt 0:11:46]} axb5 {[%emt 0:03:12]} 25. axb5 {[%emt 0:00:07]} cxb5 {[%emt 0:00:05]} 26. d5 {[%emt 0:01:40]} b4 {[%emt 0:00:17]} 27. Bf4 {[%emt 0:03:44]} Bc3 {[%emt 0:03:55]} 28. c6 {[%emt 0:04:42]} bxc6 {[%emt 0:00:25]} 29. dxc6 {[%emt 0:00:05]} Rxd3 {[%emt 0:00:06]} 30. Rxd3 {[%emt 0:00:03]} Rc5 {[%emt 0:02:40]} 31. Rd7 {[%emt 0:03:12]} Rxc6 {[%emt 0:02:04]} 32. Rxe7 {[%emt 0:00:07]} b3 {[%emt 0:00:04]} 33. Re8+ {[%emt 0:00:07]} Kd7 {[%emt 0:00:07]} 34. Rb8 {[%emt 0:00:05]} b2 {[%emt 0:00:17]} 35. Rb7+ {[%emt 0:01:27]} Ke6 {[%emt 0:00:37]} 36. Kd3 {[%emt 0:00:15]} Bg7 {[%emt 0:00:47]} 37. Bd2 {[%emt 0:00:44]} Rc1 {[%emt 0:00:10]} 38. Rb6+ {[%emt 0:00:20]} Kd7 {[%emt 0:00:08]} 0-1

[Event "Berliner IM-Turnier 2025"]
[Site "Berlin"]
[Date "2025.02.27"]
[Round "5.10"]
[White "Schulze, Lara"]
[Black "Jakubowski, Krzysztof"]
[Result "1/2-1/2"]
[Annotator "ChessBase"]
[ECO "B22"]
[WhiteElo "2266"]
[BlackElo "2449"]
[PlyCount "136"]
[EventDate "2025.02.23"]
[EventType "tourn"]
[EventCountry "GER"]
[SourceTitle "playchess.com"]
[Source "ChessBase"]
[SourceQuality "1"]
[TimeControl "40/5400+30:1800+30"]

1. e4 {[%emt 0:00:03]} c5 {[%emt 0:00:11]} 2. Nf3 {[%emt 0:00:07]} e6 {[%emt 0:00:07]} 3. c3 {[%emt 0:00:06]} Nf6 {[%emt 0:00:09]} 4. e5 {[%emt 0:00:07]} Nd5 {[%emt 0:00:07]} 5. d4 {[%emt 0:00:12]} cxd4 {[%emt 0:00:09]} 6. cxd4 {[%emt 0:00:07]} b6 {[%emt 0:00:37]} 7. Bc4 {[%emt 0:05:48]} Ba6 {[%emt 0:00:43]} 8. Nbd2 {[%emt 0:11:45]} Qc8 {[%emt 0:03:42]} 9. Qe2 {[%emt 0:17:22]} Nf4 {[%emt 0:14:50]} 10. Bxa6 {[%emt 0:07:27]} Qxa6 {[%emt 0:00:19]} 11. Qxa6 {[%emt 0:00:32]} Nxa6 {[%emt 0:00:05]} 12. Ne4 {[%emt 0:03:07]} Bb4+ {[%emt 0:09:14]} 13. Kf1 {[%emt 0:02:33]} Nd5 {[%emt 0:00:07]} 14. a3 {[%emt 0:06:38]} Be7 {[%emt 0:00:53]} 15. Bd2 {[%emt 0:01:37]} O-O {[%emt 0:09:00]} 16. Ke2 {[%emt 0:01:56]} f5 {[%emt 0:00:11]} 17. Nc3 {[%emt 0:05:13]} Nac7 {[%emt 0:00:27]} 18. Rac1 {[%emt 0:02:17]} a5 {[%emt 0:08:30]} 19. Rc2 {[%emt 0:04:39]} b5 {[%emt 0:05:30]} 20. Rhc1 {[%emt 0:09:19]} Nxc3+ {[%emt 0:04:53]} 21. Rxc3 {[%emt 0:01:30]} Nd5 {[%emt 0:00:07]} 22. R3c2 {[%emt 0:00:04]} Rfb8 {[%emt 0:03:07]} 23. Ne1 {[%emt 0:01:42]} b4 {[%emt 0:04:06]} 24. axb4 {[%emt 0:01:00]} Bxb4 {[%emt 0:01:43]} 25. Nd3 {[%emt 0:00:51]} Kf7 {[%emt 0:02:29]} 26. Rc4 {[%emt 0:02:38]} Bxd2 {[%emt 0:18:05]} 27. Kxd2 {[%emt 0:00:14]} Ne7 {[%emt 0:01:26]} 28. Rc5 {[%emt 0:09:14]} Nc6 {[%emt 0:03:26]} 29. R1c4 {[%emt 0:01:36]} a4 {[%emt 0:00:40]} 30. Ke3 {[%emt 0:01:45]} Ne7 {[%emt 0:02:06]} 31. Kd2 {[%emt 0:01:36]} Nd5 {[%emt 0:00:16]} 32. Rc1 {[%emt 0:02:14]} a3 {[%emt 0:03:21]} 33. bxa3 {[%emt 0:00:01]} Rxa3 {[%emt 0:00:04]} 34. Ne1 {[%emt 0:01:24]} Rb2+ {[%emt 0:01:50]} 35. R5c2 {[%emt 0:00:30]} Rbb3 {[%emt 0:00:16]} 36. Rc4 {[%emt 0:00:41]} Nb4 {[%emt 0:01:03]} 37. Ke2 {[%emt 0:00:28]} Ra2+ {[%emt 0:01:23]} 38. Kf1 {[%emt 0:00:16]} Rbb2 {[%emt 0:00:15]} 39. Kg1 {[%emt 0:00:30]} g5 {[%emt 0:00:19]} 40. h3 {[%emt 0:00:41]} Kg6 {[%emt 0:01:37]} 41. g4 {[%emt 0:12:41]} fxg4 {[%emt 0:17:30]} 42. hxg4 {[%emt 0:00:21]} h5 {[%emt 0:00:05]} 43. gxh5+ {[%emt 0:06:33]} Kxh5 {[%emt 0:00:05]} 44. R1c3 {[%emt 0:05:04]} Kg6 {[%emt 0:03:46]} 45. Rc1 {[%emt 0:02:57]} Kf5 {[%emt 0:03:30]} 46. f3 {[%emt 0:00:55]} Nc6 {[%emt 0:01:29]} 47. R1c2 {[%emt 0:01:02]} Nb4 {[%emt 0:01:28]} 48. Rxb4 {[%emt 0:02:17]} Rxc2 {[%emt 0:00:05]} 49. Nxc2 {[%emt 0:00:03]} Rxc2 {[%emt 0:00:05]} 50. Rb7 {[%emt 0:00:15]} Kf4 {[%emt 0:01:04]} 51. Rxd7 {[%emt 0:00:05]} Kg3 {[%emt 0:02:01]} 52. Kf1 {[%emt 0:00:06]} Kxf3 {[%emt 0:00:04]} 53. Rf7+ {[%emt 0:00:29]} Ke4 {[%emt 0:00:18]} 54. Rg7 {[%emt 0:01:34]} g4 {[%emt 0:00:09]} 55. Rg6 {[%emt 0:01:09]} Rc6 {[%emt 0:01:27]} 56. Kf2 {[%emt 0:01:00]} Kxd4 {[%emt 0:00:09]} 57. Rxg4+ {[%emt 0:00:06]} Kxe5 {[%emt 0:00:04]} 58. Ke2 {[%emt 0:00:23]} Kf5 {[%emt 0:00:09]} 59. Ra4 {[%emt 0:00:11]} Rc2+ {[%emt 0:00:05]} 60. Ke3 {[%emt 0:00:19]} Rh2 {[%emt 0:00:08]} 61. Rb4 {[%emt 0:00:17]} e5 {[%emt 0:00:08]} 62. Ra4 {[%emt 0:00:07]} Rh3+ {[%emt 0:00:06]} 63. Ke2 {[%emt 0:00:16]} e4 {[%emt 0:00:04]} 64. Ra8 {[%emt 0:00:32]} Rh2+ {[%emt 0:00:07]} 65. Ke3 {[%emt 0:00:08]} Rh3+ {[%emt 0:00:05]} 66. Ke2 {[%emt 0:00:02]} Rh2+ {[%emt 0:00:04]} 67. Ke3 {[%emt 0:00:03]} Rh3+ {[%emt 0:00:05]} 68. Ke2 {[%emt 0:00:04]} Rh2+ {[%emt 0:00:03]} 1/2-1/2

[Event "Berliner IM-Turnier 2025"]
[Site "Berlin"]
[Date "2025.02.28"]
[Round "6.6"]
[White "Zobel, Christian"]
[Black "Jakubowski, Krzysztof"]
[Result "0-1"]
[Annotator "ChessBase"]
[ECO "A01"]
[WhiteElo "2188"]
[BlackElo "2449"]
[PlyCount "70"]
[EventDate "2025.02.23"]
[EventType "tourn"]
[EventCountry "GER"]
[SourceTitle "playchess.com"]
[Source "ChessBase"]
[SourceQuality "1"]
[TimeControl "40/5400+30:1800+30"]

1. b3 {[%emt 0:00:07]} a5 {[%emt 0:00:22]} 2. a4 {[%emt 0:04:27]} d5 {[%emt 0:09:21]} 3. Bb2 {[%emt 0:02:01]} Bf5 {[%emt 0:00:09]} 4. Nf3 {[%emt 0:00:53]} e6 {[%emt 0:00:20]} 5. e3 {[%emt 0:01:00]} h6 {[%emt 0:00:26]} 6. Be2 {[%emt 0:03:58]} Nf6 {[%emt 0:00:13]} 7. O-O {[%emt 0:00:45]} Be7 {[%emt 0:00:12]} 8. Ne5 {[%emt 0:02:55]} O-O {[%emt 0:00:56]} 9. f4 {[%emt 0:02:48]} Nfd7 {[%emt 0:04:59]} 10. Bg4 {[%emt 0:07:23]} Bh7 {[%emt 0:06:10]} 11. Bh3 {[%emt 0:04:01]} Nxe5 {[%emt 0:03:25]} 12. fxe5 {[%emt 0:01:26]} Nc6 {[%emt 0:03:28]} 13. d4 {[%emt 0:12:17]} Nb4 {[%emt 0:01:32]} 14. Na3 {[%emt 0:00:41]} c5 {[%emt 0:00:15]} 15. Rf2 {[%emt 0:13:37]} Rc8 {[%emt 0:01:08]} 16. c3 {[%emt 0:08:39]} Nd3 {[%emt 0:05:27]} 17. Rd2 {[%emt 0:00:18]} Nxb2 {[%emt 0:00:48]} 18. Rxb2 {[%emt 0:00:01]} cxd4 {[%emt 0:00:07]} 19. cxd4 {[%emt 0:01:09]} Rc3 {[%emt 0:00:12]} 20. Nb5 {[%emt 0:09:57]} Rxe3 {[%emt 0:00:48]} 21. Rc1 {[%emt 0:01:06]} Bb4 {[%emt 0:01:42]} 22. Qg4 {[%emt 0:01:26]} Bd3 {[%emt 0:05:52]} 23. Rf2 {[%emt 0:01:56]} Bxb5 {[%emt 0:00:37]} 24. axb5 {[%emt 0:00:02]} Rxb3 {[%emt 0:00:05]} 25. Rcf1 {[%emt 0:01:11]} Qg5 {[%emt 0:05:52]} 26. Qxg5 {[%emt 0:05:06]} hxg5 {[%emt 0:00:06]} 27. Rxf7 {[%emt 0:00:15]} Re8 {[%emt 0:05:30]} 28. Rd7 {[%emt 0:04:23]} a4 {[%emt 0:05:04]} 29. Rff7 {[%emt 0:00:41]} Bf8 {[%emt 0:00:06]} 30. Rxb7 {[%emt 0:01:07]} a3 {[%emt 0:01:57]} 31. Rf1 {[%emt 0:01:36]} Bb4 {[%emt 0:03:28]} 32. Rb6 {[%emt 0:02:37]} Bc3 {[%emt 0:00:41]} 33. Bxe6+ {[%emt 0:00:40]} Rxe6 {[%emt 0:00:11]} 34. Rxe6 {[%emt 0:00:17]} Bxd4+ {[%emt 0:00:04]} 35. Kh1 {[%emt 0:00:04]} a2 {[%emt 0:00:10]} 0-1

[Event "Berliner IM-Turnier 2025"]
[Site "Berlin"]
[Date "2025.02.28"]
[Round "6.7"]
[White "Poltorak, Sebastian"]
[Black "Schulze, Lara"]
[Result "1-0"]
[Annotator "ChessBase"]
[ECO "D38"]
[WhiteElo "2407"]
[BlackElo "2266"]
[PlyCount "75"]
[EventDate "2025.02.23"]
[EventType "tourn"]
[EventCountry "GER"]
[SourceTitle "playchess.com"]
[Source "ChessBase"]
[SourceQuality "1"]
[TimeControl "40/5400+30:1800+30"]

1. d4 {[%emt 0:00:06]} Nf6 {[%emt 0:00:13]} 2. c4 {[%emt 0:00:10]} e6 {[%emt 0:00:06]} 3. Nc3 {[%emt 0:00:07]} Bb4 {[%emt 0:00:05]} 4. Nf3 {[%emt 0:00:06]} d5 {[%emt 0:00:08]} 5. Qa4+ {[%emt 0:00:07]} Nc6 {[%emt 0:00:08]} 6. a3 {[%emt 0:00:06]} Bxc3+ {[%emt 0:00:56]} 7. bxc3 {[%emt 0:00:06]} Ne4 {[%emt 0:01:08]} 8. e3 {[%emt 0:00:06]} Nxc3 {[%emt 0:14:24]} 9. Qc2 {[%emt 0:00:12]} Ne4 {[%emt 0:00:07]} 10. Bd3 {[%emt 0:00:09]} f5 {[%emt 0:14:01]} 11. cxd5 {[%emt 0:18:12]} exd5 {[%emt 0:05:40]} 12. Ne5 {[%emt 0:14:58]} Ne7 {[%emt 0:15:35]} 13. a4 {[%emt 0:03:35]} O-O {[%emt 0:02:25]} 14. Ba3 {[%emt 0:00:58]} Rf6 {[%emt 0:02:33]} 15. Rc1 {[%emt 0:02:39]} c6 {[%emt 0:01:02]} 16. f3 {[%emt 0:02:35]} Qa5+ {[%emt 0:04:14]} 17. Ke2 {[%emt 0:01:17]} Nd6 {[%emt 0:00:15]} 18. g3 {[%emt 0:03:24]} Qd8 {[%emt 0:01:31]} 19. Qc3 {[%emt 0:06:15]} Bd7 {[%emt 0:02:29]} 20. h4 {[%emt 0:00:36]} Be8 {[%emt 0:01:29]} 21. Rcg1 {[%emt 0:03:00]} a5 {[%emt 0:03:54]} 22. h5 {[%emt 0:04:41]} b5 {[%emt 0:01:35]} 23. Qc2 {[%emt 0:02:54]} Nc4 {[%emt 0:04:37]} 24. Bc5 {[%emt 0:00:26]} h6 {[%emt 0:10:30]} 25. g4 {[%emt 0:00:58]} fxg4 {[%emt 0:02:48]} 26. Nxg4 {[%emt 0:09:54]} Re6 {[%emt 0:00:24]} 27. f4 {[%emt 0:00:56]} Nc8 {[%emt 0:02:38]} 28. f5 {[%emt 0:00:31]} Rf6 {[%emt 0:00:34]} 29. e4 {[%emt 0:02:01]} dxe4 {[%emt 0:01:44]} 30. Bxc4+ {[%emt 0:00:06]} bxc4 {[%emt 0:00:03]} 31. Qxe4 {[%emt 0:00:33]} Bf7 {[%emt 0:01:52]} 32. Qe5 {[%emt 0:01:57]} Kh7 {[%emt 0:05:40]} 33. Nxf6+ {[%emt 0:00:05]} gxf6 {[%emt 0:00:24]} 34. Qg3 {[%emt 0:01:25]} Qh8 {[%emt 0:00:16]} 35. Kf2 {[%emt 0:02:09]} Na7 {[%emt 0:01:13]} 36. Qc7 {[%emt 0:00:06]} Qe8 {[%emt 0:00:25]} 37. Re1 {[%emt 0:00:07]} Qg8 {[%emt 0:00:32]} 38. Rhg1 {[%emt 0:00:04]} 1-0